bitfinex-derivatives/quotes_SOLF0:USTF0_20241024
["timestamp","ask_amount","ask_price","bid_price","bid_amount"]
[1729804088856,6.9195,177.44,177.39,2.76976455]
[1729804089056,6.9195,177.44,177.4,2.8199]
[1729804089257,6.9195,177.44,177.38,8.26076262]
[1729804089469,2.8196,177.43,177.38,11.08106262]
[1729804090662,4.1,177.44,177.41,2.8197]
[1729804090864,4.1,177.44,177.39,2.86675142]
[1729804091065,4.1,177.44,177.38,8.26076262]
[1729804092471,2.82,177.41,177.38,8.26076262]
[1729804092867,2.82,177.41,177.33,5.7025]
[1729804093364,4.1,177.44,177.33,5.7025]
[1729804093568,2.8197,177.42,177.37,2.8204]
[1729804094660,2.8202,177.39,177.35,2.8207]
[1729804094860,4.1,177.38,177.27,1.5987]
[1729804095165,4.1,177.37,177.27,5.6987]
[1729804095364,4.1,177.36,177.27,5.6987]
[1729804096262,4.1,177.36,177.33,2.821]
[1729804097363,4.1,177.36,177.34,2.8209]
[1729804097562,4.1,177.36,177.27,5.6987]
[1729804097770,4.1,177.36,177.32,2.8212]
[1729804097969,4.1,177.36,177.27,5.6987]
[1729804099265,4.1,177.36,177.35,2.8208]
[1729804101069,4.1,177.36,177.27,5.6987]
[1729804101274,4.1,177.36,177.33,2.821]
[1729804102274,5.6354,177.55,177.38,2.8202]
[1729804102480,7.2931,177.49,177.33,4.1]
[1729804102672,5.6389,177.48,177.33,4.1]
[1729804102873,2.8194,177.44,177.37,2.8204]
[1729804103076,6.9194,177.44,177.33,5.6228]
[1729804103472,4.1,177.44,177.33,5.6228]
[1729804103879,4.1,177.44,177.41,2.8198]
[1729804109883,4.1,177.44,177.39,2.8201]
[1729804110087,1.6365,177.43,177.39,2.8201]
[1729804110286,1.6365,177.43,177.42,1.41027883]
[1729804110874,4.456,177.43,177.42,1.41027883]
[1729804111074,5.9922,177.43,177.33,5.6228]
[1729804112278,5.9922,177.43,177.38,2.8202]
[1729804113274,3.1727,177.43,177.33,5.6228]
[1729804113989,3.1727,177.43,177.4,2.8198]
[1729804116489,3.1727,177.43,177.33,5.6228]
[1729804117090,3.1727,177.43,177.39,2.82]
[1729804118691,3.1727,177.43,177.33,5.6228]
[1729804119391,3.1727,177.43,177.39,2.82]
[1729804120201,5.9923,177.43,177.39,2.82]
[1729804120995,3.1727,177.43,177.39,2.82]
[1729804121200,3.1727,177.43,177.41,2.8198]
[1729804121804,3.1727,177.43,177.33,5.6228]
[1729804122103,4.1,177.44,177.4,5.16953345]
[1729804123307,4.1,177.44,177.41,2.8198]
[1729804125503,4.1,177.44,177.41,16.26930599]
[1729804126308,4.1,177.44,177.41,11.09641907]
[1729804126603,4.1,177.44,177.41,2.8198]
[1729804126810,4.1,177.44,177.42,2.8196]
[1729804127413,3.136,177.47,177.4,5.16953345]
[1729804127611,4.1,177.46,177.4,5.16953345]
[1729804128210,3.136,177.47,177.4,5.16953345]
[1729804128511,4.1,177.46,177.4,5.16953345]
[1729804128710,4.1,177.46,177.43,2.8194]
[1729804129011,4.1,177.46,177.4,5.16953345]
[1729804129207,1.5389,177.48,177.4,5.16953345]
[1729804129413,4.1,177.48,177.46,2.819]
[1729804129612,4.1,177.48,177.4,5.16953345]
[1729804130009,4.1,177.48,177.45,2.8191]
[1729804130209,4.1,177.48,177.4,5.16953345]
[1729804130613,4.1,177.48,177.46,2.819]
[1729804132314,3.1733,177.54,177.47,5.16998868]
[1729804132613,4.1,177.53,177.47,5.16998868]
[1729804132807,6.9181,177.52,177.48,2.8186]
[1729804133009,4.1,177.52,177.47,5.16998868]
[1729804134014,4.1,177.52,177.44,4.1]
[1729804134807,4.1,177.52,177.5,2.8183]
[1729804135614,1.5716,177.54,177.51,2.8182]
[1729804135809,4.1,177.54,177.45,1.5366]
[1729804136015,4.1,177.54,177.51,2.8181]
[1729804136207,4.1,177.54,177.46,1.5194]
[1729804136406,4.1,177.54,177.51,5.16593493]
[1729804138214,2.8176,177.56,177.51,5.16593493]
[1729804138516,6.9176,177.56,177.51,5.16593493]
[1729804138717,2.8177,177.55,177.51,5.16593493]
[1729804139712,3.1624,177.58,177.52,13.4113233]
[1729804139911,4.1,177.56,177.52,13.4113233]
[1729804140115,4.1,177.56,177.52,8.25312203]
[1729804140317,4.1,177.56,177.53,2.8179]
[1729804140512,4.1,177.56,177.51,5.16593493]
[1729804140911,78.98973092,177.59,177.51,5.16593493]
[1729804141218,4.1,177.58,177.51,5.16593493]
[1729804141817,6.9173,177.58,177.53,2.8178]
[1729804142218,4.1,177.58,177.51,5.16593493]
[1729804142520,2.8173,177.57,177.53,2.8179]
[1729804143112,6.9172,177.58,177.53,2.8179]
[1729804143308,4.1,177.58,177.51,5.16593493]
[1729804143513,4.1,177.58,177.54,2.8177]
[1729804144313,4.1,177.58,177.51,5.16593493]
[1729804145222,6.9172,177.58,177.51,5.16593493]
[1729804145621,6.9172,177.58,177.53,2.8179]
[1729804146413,6.9172,177.58,177.51,5.16593493]
[1729804146722,6.9172,177.58,177.54,2.8177]
[1729804147815,4.1,177.58,177.54,2.8177]
[1729804148218,4.1,177.58,177.49,2.77114806]
[1729804148917,4.1,177.58,177.48,4.1]
[1729804149423,4.1,177.58,177.51,2.8182]
[1729804149624,4.1,177.58,177.48,6.9845299]
[1729804150222,4.1,177.58,177.48,2.8845299]
[1729804150423,2.8174,177.57,177.48,4.1]
[1729804150929,2.8174,177.57,177.52,2.818]
[1729804151621,2.8176,177.56,177.51,2.8182]
[1729804152027,4.1,177.55,177.51,2.8182]
[1729804152720,4.1,177.55,177.47,6.86873801]
[1729804153324,4.1,177.55,177.52,2.818]
[1729804154318,4.1,177.55,177.54,2.8178]
[1729804155118,1.6341,177.57,177.54,2.8178]
[1729804155423,1.6341,177.57,177.47,6.86873801]
[1729804155630,4.1,177.58,177.47,6.86873801]
[1729804156624,1.6019,177.62,177.47,6.86873801]
[1729804156828,4.1,177.61,177.47,6.86873801]
[1729804157935,2.817,177.59,177.54,2.8177]
[1729804158133,4.1,177.61,177.47,6.86873801]
[1729804158638,2.8171,177.58,177.47,6.86873801]
[1729804159529,4.1,177.61,177.47,6.86873801]
[1729804159729,2.817,177.59,177.54,2.8177]
[1729804160524,2.8172,177.58,177.47,6.86873801]
[1729804160739,4.14,177.57,177.47,6.86873801]
[1729804161232,4.14,177.57,177.54,2.8178]
[1729804164931,4.14,177.57,177.53,2.8178]
[1729804165126,4.14,177.57,177.47,6.86873801]
[1729804165532,4.4184,177.62,177.56,2.8174]
[1729804165738,5.7203,177.63,177.51,4.14]
[1729804165938,5.7203,177.63,177.52,4.7658]
[1729804166133,5.7203,177.63,177.53,2.83905116]
[1729804166530,5.7203,177.63,177.52,4.7658]
[1729804166737,5.7203,177.63,177.57,2.8172]
[1729804166738,8.5366,177.63,177.57,2.8172]
[1729804168245,8.5366,177.63,177.52,7.64517376]
[1729804168439,6.9563,177.63,177.58,2.8171]
[1729804169237,2.8161,177.65,177.61,2.8166]
[1729804169444,4.14,177.67,177.55,4.14]
[1729804169839,2.8159,177.66,177.61,2.8165]
[1729804170242,4.14,177.67,177.55,4.14]
[1729804171068,2.8159,177.66,177.55,4.14]
[1729804171263,4.14,177.67,177.55,4.14]
[1729804171576,4.14,177.67,177.62,2.8164]
[1729804171774,4.14,177.67,177.55,4.14]
[1729804172863,1.4864,177.7,177.63,2.8163]
[1729804173059,1.4864,177.7,177.57,4.14]
[1729804173060,2.8161,177.65,177.57,4.14]
[1729804173270,4.14,177.69,177.52,7.64517376]
[1729804173455,4.14,177.69,177.53,4.14]
[1729804173684,2.8164,177.63,177.54,4.14]
[1729804173866,4.14,177.64,177.55,4.14]
[1729804174095,1.4864,177.7,177.55,4.14]
[1729804174096,2.8167,177.61,177.55,4.14]
[1729804174371,2.8167,177.61,177.52,11.78517376]
[1729804174573,4.14,177.62,177.52,11.78517376]
[1729804175274,4.14,177.62,177.57,2.8172]
[1729804175870,4.14,177.62,177.52,11.78517376]
[1729804176501,4.14,177.62,177.59,2.8169]
[1729804176676,2.816,177.65,177.52,11.78517376]
[1729804176856,4.14,177.65,177.52,11.78517376]
[1729804178145,1.5768,177.73,177.52,11.78517376]
[1729804178347,2.80554427,177.95,177.52,11.78517376]
[1729804178348,2.8151,177.71,177.54,16.92]
[1729804178556,6.9551,177.71,177.54,16.92]
[1729804178850,6.9551,177.71,177.65,2.8159]
[1729804179357,4.14,177.73,177.61,4.14]
[1729804179557,4.14,177.73,177.65,2.816]
[1729804179960,2.8152,177.71,177.65,2.816]
[1729804180261,2.8152,177.71,177.66,2.8159]
[1729804180658,4.14,177.73,177.62,4.14]
[1729804180659,2.8155,177.69,177.62,4.14]
[1729804181049,2.8155,177.69,177.63,2.8162]
[1729804181451,2.8155,177.69,177.62,4.14]
[1729804181653,2.8152,177.71,177.65,2.8159]
[1729804181956,4.14,177.72,177.62,4.14]
[1729804182157,2.8152,177.7,177.62,4.14]
[1729804183361,2.8152,177.7,177.65,2.816]
[1729804183560,2.8155,177.69,177.61,4.14]
[1729804183957,2.8155,177.69,177.6,1.5147]
[1729804183958,1.6253,177.71,177.6,1.5147]
[1729804184264,1.6253,177.71,177.6,4.14]
[1729804184660,1.6253,177.71,177.57,59.26978576]
[1729804184863,1.6253,177.71,177.58,4.14]
[1729804185165,2.8157,177.68,177.6,2.8168]
[1729804185355,5.7537,177.67,177.58,4.14]
[1729804186162,5.7537,177.67,177.57,59.26978576]
[1729804186363,5.7537,177.67,177.57,63.40978576]
[1729804187462,4.14,177.67,177.57,63.40978576]
[1729804187661,4.14,177.7,177.57,63.40978576]
[1729804188258,4.14,177.7,177.64,2.8162]
[1729804188259,2.8154,177.69,177.64,2.8162]
[1729804188463,4.14,177.7,177.57,63.40978576]
[1729804189462,2.8156,177.68,177.63,2.8163]
[1729804190266,4.14,177.69,177.57,63.40978576]
[1729804191370,6.9554,177.69,177.6,2.8167]
[1729804191568,6.9554,177.69,177.57,63.40978576]
[1729804192172,4.14,177.69,177.57,63.40978576]
[1729804192466,2.8157,177.68,177.63,2.8163]
[1729804192672,4.14,177.69,177.57,63.40978576]
[1729804192873,2.8158,177.67,177.62,2.8164]
[1729804193065,2.8158,177.67,177.57,63.40978576]
[1729804193267,4.14,177.69,177.57,63.40978576]
[1729804193876,4.14,177.69,177.58,4.2]
[1729804194666,2.8157,177.67,177.62,2.8163]
[1729804194871,2.8157,177.67,177.58,4.2]
[1729804195272,4.14,177.69,177.58,4.2]
[1729804195476,2.8157,177.67,177.58,4.2]
[1729804195880,2.8159,177.66,177.58,4.2]
[1729804196076,2.8159,177.66,177.57,59.26978576]
[1729804196378,2.8159,177.66,177.58,4.2]
[1729804196974,4.2,177.65,177.54,1.5466]
[1729804197166,4.2,177.64,177.54,1.5466]
[1729804197368,4.2,177.64,177.58,2.817]
[1729804197574,7.0163,177.64,177.54,1.5466]
[1729804198070,7.0163,177.64,177.59,2.8169]
[1729804198784,7.016,177.65,177.6,2.8167]
[1729804199081,2.816,177.65,177.6,2.8167]
[1729804201984,4.2,177.66,177.52,2.87937376]
[1729804202174,1.5206,177.64,177.53,4.2]
[1729804202687,1.5206,177.64,177.53,6.95722641]
[1729804203083,2.8167,177.61,177.56,2.8173]
[1729804203284,4.2,177.62,177.53,6.95722641]
[1729804203475,4.2,177.62,177.53,2.75722641]
[1729804203678,2.8171,177.59,177.54,2.8176]
[1729804203876,4.2,177.62,177.59,6.51706843]
[1729804204283,2.8169,177.6,177.59,6.51706843]
[1729804204580,2.8169,177.6,177.59,5.10866762]
[1729804204788,2.8169,177.6,177.51,10.05774321]
[1729804204992,2.8169,177.6,177.55,2.8175]
[1729804205187,2.817,177.59,177.51,7.2701]
[1729804205576,2.817,177.59,177.54,2.8177]
[1729804205778,2.817,177.59,177.51,10.1332989]
[1729804206290,2.8169,177.6,177.55,2.8176]
[1729804206891,2.8167,177.61,177.56,2.8174]
[1729804207185,2.8167,177.61,177.51,10.1332989]
[1729804207390,2.8167,177.61,177.56,2.8174]
[1729804207989,2.8167,177.61,177.51,10.1332989]
[1729804209384,2.8167,177.61,177.56,2.8173]
[1729804209782,4.2,177.62,177.58,2.817]
[1729804209995,4.2,177.62,177.52,9.33160587]
[1729804210286,2.8165,177.62,177.57,2.8172]
[1729804210487,4.2,177.64,177.52,17.54217526]
[1729804210800,4.2,177.64,177.61,2.8166]
[1729804210997,4.2,177.64,177.56,4.2]
[1729804211294,4.2,177.66,177.64,2.8161]
[1729804211491,4.2,177.66,177.57,1.6426]
[1729804211794,4.2,177.66,177.63,2.8162]
[1729804211994,4.2,177.66,177.57,3.2304]
[1729804212495,4.2,177.66,177.57,4.8568]
[1729804213595,4.2,177.68,177.65,2.8159]
[1729804214000,1.5087,177.69,177.65,2.8159]
[1729804214189,5.7087,177.69,177.6,4.2]
[1729804214389,5.7087,177.69,177.6,7.05056943]
[1729804214989,5.7087,177.69,177.65,2.8159]
[1729804219298,5.7087,177.69,177.6,7.05056943]
[1729804220388,5.7087,177.69,177.65,2.816]
[1729804221793,5.7087,177.69,177.6,7.05056943]
[1729804222405,4.2,177.69,177.6,7.05056943]
[1729804222705,4.2,177.71,177.6,7.05056943]
[1729804222905,4.2,177.71,177.66,2.8157]
[1729804223796,7.0151,177.71,177.66,2.8158]
[1729804223995,4.2,177.71,177.6,7.05056943]
[1729804224396,7.0151,177.71,177.66,2.8158]
[1729804225900,7.0151,177.71,177.6,7.05056943]
[1729804226101,4.2,177.71,177.6,7.05056943]
[1729804226900,4.2,177.71,177.67,2.8156]
[1729804230606,4.2,177.71,177.6,7.05056943]
[1729804232309,4.2,177.71,177.67,2.8156]
[1729804234709,4.2,177.71,177.6,7.05056943]
[1729804235111,1.61,177.76,177.6,7.05056943]
[1729804235410,4.2,177.75,177.7,2.8152]
[1729804235607,2.8147,177.74,177.7,2.8152]
[1729804236312,4.2,177.75,177.64,4.2]
[1729804236710,3.147,177.76,177.65,2.81501457]
[1729804236909,3.147,177.76,177.64,4.2]
[1729804237110,7.347,177.76,177.65,7.44640347]
[1729804237411,7.347,177.76,177.7,2.8152]
[1729804237909,2.8145,177.75,177.68,2.8155]
[1729804238116,2.8145,177.75,177.65,4.6587]
[1729804238313,3.147,177.76,177.65,4.6587]
[1729804238518,5.9614,177.76,177.71,2.815]
[1729804239524,10.1614,177.76,177.71,2.815]
[1729804240312,2.8144,177.75,177.71,2.815]
[1729804242511,10.1613,177.76,177.72,2.8149]
[1729804243020,10.1613,177.76,177.65,4.6587]
[1729804243217,10.1613,177.76,177.73,2.8147]
[1729804243615,5.9613,177.76,177.73,2.8147]
[1729804243818,10.1613,177.76,177.73,2.8147]
[1729804245220,2.8142,177.77,177.73,2.8146]
[1729804245924,7.0142,177.77,177.73,2.8146]
[1729804248426,4.2,177.77,177.73,2.8146]
[1729804248627,2.8143,177.76,177.73,2.8146]
[1729804249028,4.2,177.77,177.65,4.6587]
[1729804249222,4.2,177.77,177.66,9.8117]
[1729804249417,4.2,177.77,177.65,1.5812]
[1729804249622,3.0378,177.76,177.65,1.5812]
[1729804249827,2.815,177.72,177.69,2.8154]
[1729804250015,4.18,177.73,177.65,1.5812]
[1729804250420,2.8149,177.72,177.68,2.8154]
[1729804251525,4.18,177.73,177.67,13.35098303]
[1729804251725,2.8153,177.7,177.66,2.8157]
[1729804252225,2.8154,177.69,177.65,2.816]
[1729804253328,2.8154,177.69,177.66,1.40807529]
[1729804254024,2.8154,177.69,177.65,2.816]
[1729804254724,4.18,177.69,177.64,2.8162]
[1729804254924,2.8159,177.66,177.59,3.0989]
[1729804255226,2.8159,177.66,177.59,1.5079]
[1729804256330,2.8159,177.66,177.61,2.8166]
[1729804257032,2.8157,177.67,177.62,2.8164]
[1729804257629,5.8953,177.68,177.61,2.8165]
[1729804257829,5.8953,177.68,177.59,1.5079]
[1729804258531,4.18,177.73,177.59,1.5079]
[1729804258731,4.18,177.73,177.6,1.61]
[1729804258936,2.8153,177.7,177.64,2.8162]
[1729804259133,4.18,177.73,177.64,2.8162]
[1729804259734,2.8154,177.69,177.64,2.8162]
[1729804260326,4.18,177.72,177.61,4.18]
[1729804260523,2.8153,177.7,177.65,2.8159]
[1729804260924,2.8153,177.7,177.66,2.8159]
[1729804261325,2.8154,177.69,177.61,4.18]
[1729804261527,4.18,177.72,177.65,2.8159]
[1729804261730,4.18,177.72,177.61,4.18]
[1729804261926,3.2152,177.75,177.61,4.18]
[1729804262230,4.18,177.73,177.7,2.8151]
[1729804263128,4.18,177.74,177.65,4.18]
[1729804263335,4.18,177.74,177.71,2.815]
[1729804263529,6.0297,177.75,177.65,4.18]
[1729804263530,3.2152,177.75,177.65,4.18]
[1729804263733,4.18,177.83,177.65,4.18]
[1729804263930,4.18,177.82,177.66,1.5062]
[1729804264135,4.18,177.81,177.67,1.4864]
[1729804264331,3.057,177.84,177.76,2.8141]
[1729804264525,4.18,177.83,177.67,67.72732023]
[1729804264738,4.18,177.83,177.76,2.8141]
[1729804264941,2.8134,177.82,177.76,2.8141]
[1729804265140,4.18,177.83,177.67,1.4864]
[1729804265330,4.18,177.83,177.68,4.18]
[1729804265637,4.18,177.83,177.67,1.4864]
[1729804266231,4.18,177.83,177.75,2.8143]
[1729804266441,4.18,177.83,177.69,4.18]
[1729804267131,2.8136,177.81,177.69,4.18]
[1729804267335,4.18,177.83,177.69,4.18]
[1729804267640,2.8135,177.82,177.77,2.8141]
[1729804268039,2.8135,177.82,177.7,2.75142484]
[1729804268040,3.057,177.84,177.7,2.75142484]
[1729804268239,6.9932,177.83,177.78,2.8139]
[1729804268443,2.8132,177.83,177.7,4.41576299]
[1729804268747,4.18,177.82,177.7,1.583]
[1729804269236,4.18,177.82,177.78,2.8138]
[1729804269842,4.18,177.82,177.78,2.814]
[1729804270243,63.58554427,177.95,177.7,4.39771515]
[1729804270444,2.8127,177.86,177.81,2.8134]
[1729804270744,4.18,177.85,177.81,2.8134]
[1729804271143,4.18,177.85,177.74,3.1822]
[1729804271735,4.5839,177.94,177.74,3.1822]
[1729804271943,2.8127,177.87,177.82,2.8133]
[1729804272143,4.18,177.92,177.78,4.18]
[1729804272440,2.8122,177.89,177.79,4.18]
[1729804273242,2.82034345,178.01,177.79,4.18]
[1729804273243,0.2,178.0,177.79,4.18]
[1729804273440,8.26532664,177.99,177.8,1.5962]
[1729804273639,0.95782664,177.98,177.8,5.7762]
[1729804273844,2.8117,177.93,177.8,1.5962]
[1729804274045,4.18,177.92,177.81,4.18]
[1729804274242,4.18,177.92,177.89,2.8121]
[1729804274550,4.18,177.92,177.81,5.7445]
[1729804274735,4.18,177.92,177.82,2.8132]
[1729804274936,4.18,177.92,177.79,2.86211205]
[1729804274937,4.18,177.92,177.81,4.18]
[1729804275337,4.18,177.92,177.76,1.6358]
[1729804275642,4.18,177.92,177.77,4.18]
[1729804276243,6.9919,177.92,177.81,2.8134]
[1729804276446,4.18,177.92,177.76,1.6358]
[1729804276742,2.8123,177.89,177.83,2.813]
[1729804276936,2.8123,177.89,177.81,14.73503591]
[1729804277135,4.6861,177.91,177.81,17.50813487]
[1729804277748,4.6861,177.91,177.81,9.30620572]
[1729804277944,4.6861,177.91,177.85,2.8127]
[1729804278345,4.6861,177.91,177.81,4.18]
[1729804278544,4.6861,177.91,177.86,2.8126]
[1729804279245,4.6861,177.91,177.87,2.8124]
[1729804280150,4.6861,177.91,177.81,4.18]
[1729804280346,4.6861,177.91,177.88,2.8123]
[1729804281751,3.1164,177.91,177.88,2.8123]
[1729804284559,2.8123,177.89,177.82,2.8132]
[1729804284847,3.1164,177.91,177.81,4.34]
[1729804285157,3.1164,177.91,177.84,2.813]
[1729804285348,3.1164,177.91,177.81,7.09631886]
[1729804285757,3.1164,177.91,177.84,2.813]
[1729804285946,5.9283,177.91,177.81,7.09631886]
[1729804286555,3.1164,177.91,177.8,4.34]
[1729804286751,3.1164,177.91,177.8,7.11391274]
[1729804287145,2.8122,177.89,177.84,2.8129]
[1729804287341,3.1164,177.91,177.8,7.11391274]
[1729804288365,3.1164,177.91,177.82,5.11807873]
[1729804288652,5.9283,177.91,177.82,0.11807873]
[1729804289046,0.9283,177.91,177.82,0.11807873]
[1729804289245,4.18,177.92,177.82,0.11807873]
[1729804289442,4.18,177.92,177.8,5.19851274]
[1729804289646,2.8121,177.9,177.85,2.8127]
[1729804290547,1.9921,177.92,177.85,2.8127]
[1729804291056,1.9921,177.92,177.8,3.01121274]
[1729804291458,2.8121,177.9,177.85,2.8127]
[1729804291858,4.34,177.89,177.78,4.34]
[1729804292064,4.34,177.89,177.76,1.6358]
[1729804292065,2.8125,177.88,177.83,2.813]
[1729804292352,2.8125,177.88,177.78,2.153]
[1729804292558,2.1525,177.89,177.79,2.7821012]
[1729804292965,2.1525,177.89,177.78,4.34]
[1729804293357,4.34,177.88,177.78,4.34]
[1729804293656,2.8125,177.88,177.83,2.8131]
[1729804293862,2.8125,177.88,177.78,4.34]
[1729804294263,2.8125,177.88,177.79,2.81867078]
[1729804294558,2.8125,177.88,177.82,2.8132]
[1729804294762,2.1525,177.89,177.82,2.8132]
[1729804295157,2.1525,177.89,177.79,2.03878756]
[1729804295463,4.34,177.88,177.79,1.40691678]
[1729804295762,2.8125,177.87,177.82,2.8132]
[1729804296157,2.1525,177.88,177.82,2.8132]
[1729804296561,2.1525,177.88,177.79,0.62877644]
[1729804296761,2.1525,177.88,177.78,3.56277452]
[1729804296960,4.34,177.88,177.78,3.56277452]
[1729804297267,2.8125,177.87,177.79,0.5950199]
[1729804297562,2.1525,177.88,177.78,4.34]
[1729804297764,2.1525,177.88,177.79,2.79616643]
[1729804297963,4.34,177.89,177.79,7.13616643]
[1729804298154,4.34,177.89,177.79,4.34]
[1729804298357,2.8125,177.88,177.82,2.8133]
[1729804298558,4.34,177.89,177.79,2.1533]
[1729804298756,4.34,177.89,177.79,4.94355903]
[1729804299368,4.34,177.89,177.79,2.79025903]
[1729804299568,2.8126,177.87,177.82,2.8132]
[1729804299959,2.8126,177.87,177.79,5.0104095]
[1729804300361,2.1526,177.89,177.79,5.0104095]
[1729804300663,2.1526,177.89,177.79,4.3504095]
[1729804300966,2.1526,177.89,177.79,4.34]
[1729804301359,2.8127,177.87,177.82,2.8132]
[1729804301766,4.34,177.89,177.82,2.8132]
[1729804301969,4.34,177.89,177.79,4.34]
[1729804302569,2.1525,177.89,177.83,2.813]
[1729804303069,2.1525,177.89,177.79,2.78588566]
[1729804303369,4.34,177.89,177.79,4.34]
[1729804303572,2.8125,177.88,177.83,2.813]
[1729804303773,4.34,177.92,177.8,4.34]
[1729804304065,2.8121,177.9,177.83,2.8131]
[1729804304259,2.8121,177.9,177.8,4.34]
[1729804304573,4.34,177.92,177.81,4.34]
[1729804304760,4.34,177.92,177.86,2.8126]
[1729804304963,2.152,177.92,177.86,2.8126]
[1729804305168,2.152,177.92,177.83,0.8724]
[1729804305564,4.34,177.92,177.83,0.8724]
[1729804305760,2.8121,177.91,177.86,2.8126]
[1729804305968,4.34,177.92,177.79,4.34]
[1729804306376,2.8119,177.92,177.79,4.34]
[1729804306773,4.34,177.93,177.8,4.34]
[1729804307274,4.34,177.92,177.86,2.8126]
[1729804307474,4.34,177.92,177.8,2.1526]
[1729804308175,55.7609,178.02,177.8,2.1526]
[1729804308176,2.8119,177.91,177.8,2.1526]
[1729804308376,2.8119,177.91,177.78,3.76309748]
[1729804308576,2.1519,177.93,177.79,4.46]
[1729804309075,2.1519,177.93,177.8,4.46]
[1729804309278,4.46,177.95,177.88,2.8123]
[1729804309772,4.46,177.95,177.84,2.2723]
[1729804310281,2.8117,177.93,177.87,2.8125]
[1729804310481,4.46,177.95,177.87,2.8125]
[1729804310677,4.46,177.94,177.84,2.2723]
[1729804310976,2.8116,177.93,177.84,0.0848]
[1729804311477,4.46,177.94,177.84,0.0848]
[1729804311676,2.2716,177.94,177.84,0.0848]
[1729804311872,2.2716,177.94,177.76,6.72525233]
[1729804312068,2.2716,177.94,177.77,4.46]
[1729804312275,2.2716,177.94,177.77,7.30338713]
[1729804312575,2.2716,177.94,177.78,4.46]
[1729804312975,4.46,177.93,177.78,4.46]
[1729804313172,1.0616,178.01,177.76,1.09695233]
[1729804313380,2.8115,177.94,177.88,2.8123]
[1729804313679,4.46,177.95,177.84,4.46]
[1729804314076,4.46,177.95,177.89,2.8122]
[1729804314277,4.46,178.03,177.88,4.46]
[1729804314485,0.95743647,178.02,177.89,4.46]
[1729804314676,2.44723647,178.02,177.89,4.46]
[1729804314872,1.4898,178.02,177.89,4.46]
[1729804315072,2.8108,177.99,177.93,2.8115]
[1729804315277,1.4898,178.02,177.89,2.2715]
[1729804315477,132.83833961,178.05,177.89,2.2715]
[1729804315680,4.87740493,178.04,177.9,1.5549]
[1729804315977,4.46,178.04,177.9,1.5549]
[1729804316173,2.8109,177.98,177.93,2.8116]
[1729804316481,4.46,178.0,177.9,4.46]
[1729804316685,2.8108,177.99,177.94,2.8113]
[1729804316877,4.46,178.0,177.9,2.2713]
[1729804317090,4.46,178.0,177.9,3.8479]
[1729804317785,2.8108,177.99,177.95,2.8112]
[1729804317980,2.2708,178.0,177.95,2.8112]
[1729804318380,2.2708,178.0,177.9,2.2712]
[1729804318783,4.46,178.0,177.9,3.8958]
[1729804319087,4.46,178.0,177.9,1.7071]
[1729804319481,4.46,178.0,177.9,1.6246]
[1729804319986,4.46,178.0,177.95,2.8112]
[1729804320485,4.46,178.0,177.9,1.0204]
[1729804321281,4.46,178.0,177.79,352.92]
[1729804321482,4.46,178.0,177.8,10.0871]